fUSD/lending_fUSD_20240104
["ID","MTS","AMOUNT","RATE_DAILY","PERIOD"]
[310104260,1704337839781,-500.0,0.00032876,2]
[310104261,1704337839791,-500.0,0.00032876,2]
[310104262,1704337839801,-500.0,0.00032876,2]
[310104263,1704337839810,-500.0,0.00032876,2]
[310104264,1704337839819,-500.0,0.00032876,2]
[310104265,1704337839829,-825.31,0.00032876,2]
[310104266,1704337839841,-500.0,0.00032876,2]
[310104267,1704337839852,-500.0,0.00032876,2]
[310104268,1704337839861,-415.80928479,0.00032876,2]
[310104269,1704337839873,-518.84003791,0.00032876,2]
[310104270,1704337839882,-500.0,0.00032876,2]
[310104271,1704337839892,-500.0,0.00032876,2]
[310104272,1704337839902,-500.0,0.00032876,2]
[310104273,1704337839912,-482.73315852,0.00032876,2]
[310104274,1704337839922,-500.0,0.00032876,2]
[310104275,1704337839931,-500.0,0.00032876,2]
[310104276,1704337839941,-296.18232914,0.00032876,2]
[310104277,1704337839951,-500.0,0.00032876,2]
[310104278,1704337839964,-500.0,0.00032876,2]
[310104279,1704337839975,-500.0,0.00032876,2]
[310104280,1704337839985,-224.50525921,0.00032876,2]
[310104281,1704337839998,-500.0,0.00032876,2]
[310104282,1704337840009,-500.0,0.00032876,2]
[310104283,1704337840020,-500.0,0.00032876,2]
[310104284,1704337840029,-500.0,0.00032876,2]
[310104285,1704337840039,-855.02,0.00032876,2]
[310104286,1704337840049,-509.51686524,0.00032876,2]
[310104287,1704337840058,-508.635541,0.00032876,2]
[310104288,1704337840068,-500.0,0.00032876,2]
[310104289,1704337840077,-529.22770042,0.00032876,2]
[310104290,1704337840087,-500.0,0.00032876,2]
[310104291,1704337840096,-500.0,0.00032876,2]
[310104292,1704337840105,-511.10470922,0.00032876,2]
[310104293,1704337840115,-500.0,0.00032876,2]
[310104294,1704337840125,-500.0,0.00032876,2]
[310104295,1704337840134,-500.0,0.00032876,2]
[310104296,1704337840143,-500.0,0.00032876,2]
[310104297,1704337840152,-500.0,0.00032876,2]
[310104298,1704337840162,-500.0,0.00032876,2]
[310104299,1704337840171,-505.31756517,0.00032876,2]
[310104300,1704337840181,-514.99033544,0.00032876,2]
[310104301,1704337840190,-500.0,0.00032876,2]
[310104302,1704337840199,-463.87549177,0.00032876,2]
[310104303,1704337840209,-500.0,0.00032876,2]
[310104304,1704337840218,-500.0,0.00032876,2]
[310104305,1704337840227,-500.0,0.00032876,2]
[310104306,1704337840237,-500.0,0.00032876,2]
[310104307,1704337840246,-500.0,0.00032876,2]
[310104308,1704337840255,-173.57464149,0.00032876,2]
[310104309,1704337840266,-500.0,0.00032876,2]
[310104310,1704337840276,-520.97583705,0.00032876,2]
[310104311,1704337840286,-500.0,0.00032876,2]
[310104312,1704337840295,-500.0,0.00032876,2]
[310104313,1704337840304,-508.54912397,0.00032876,2]
[310104314,1704337840571,-500.0,0.00032876,2]
[310104315,1704337840581,-500.0,0.00032876,2]
[310104316,1704337840592,-513.40645743,0.00032876,2]
[310104317,1704337840602,-500.0,0.00032876,2]
[310104318,1704337840611,-500.0,0.00032876,2]
[310104319,1704337840621,-482.26757693,0.00032876,2]
[310104320,1704337840630,-500.0,0.00032876,2]
[310104321,1704337840640,-415.49165491,0.00032876,2]
[310104322,1704337840650,-500.0,0.00032876,2]
[310104323,1704337840661,-513.9490191,0.00032876,2]
[310104324,1704337840670,-500.0,0.00032876,2]
[310104325,1704337840680,-500.0,0.00032876,2]
[310104326,1704337840690,-514.95207782,0.00032876,2]
[310104327,1704337840699,-500.0,0.00032876,2]
[310104328,1704337840708,-500.0,0.00032876,2]
[310104329,1704337840717,-500.0,0.00032876,2]
[310104330,1704337840726,-500.0,0.00032876,2]
[310104331,1704337840736,-500.0,0.00032876,2]
[310104332,1704337840745,-500.0,0.00032876,2]
[310104333,1704337840755,-1420.99,0.00032876,2]
[310104334,1704337840765,-500.0,0.00032876,2]
[310104335,1704337840775,-500.0,0.00032876,2]
[310104336,1704337840785,-533.13248538,0.00032876,2]
[310104337,1704337840794,-500.0,0.00032876,2]
[310104338,1704337840804,-500.0,0.00032876,2]
[310104339,1704337840813,-500.0,0.00032876,2]
[310104340,1704337840822,-536.6661774,0.00032876,2]
[310104341,1704337840831,-500.0,0.00032876,2]
[310104342,1704337840840,-500.0,0.00032876,2]
[310104343,1704337840849,-597.72,0.00032876,2]
[310104344,1704337840859,-527.72020212,0.00032876,2]
[310104345,1704337840870,-648.98970297,0.00032876,2]
[310104346,1704337840881,-500.0,0.00032876,2]
[310104347,1704337840891,-500.0,0.00032876,2]
[310104348,1704337840902,-540.11,0.00032876,2]
[310104349,1704337840912,-500.0,0.00032876,2]
[310104350,1704337840924,-548.19473247,0.00032876,2]
[310104351,1704337840934,-1121.46,0.00032876,2]
[310104352,1704337840945,-517.1219611,0.00032876,2]
[310104353,1704337840955,-500.0,0.00032876,2]
[310104354,1704337840964,-500.0,0.00032876,2]
[310104356,1704337840973,-515.99255719,0.00032876,2]
[310104358,1704337840983,-500.0,0.00032876,2]
[310104360,1704337840992,-500.0,0.00032876,2]
[310104362,1704337841001,-500.0,0.00032876,2]
[310104363,1704337841010,-500.0,0.00032876,2]
[310104364,1704337841019,-500.0,0.00032876,2]
[310104366,1704337841029,-500.0,0.00032876,2]
[310104367,1704337841039,-500.0,0.00032876,2]
[310104368,1704337841050,-500.0,0.00032876,2]
[310104369,1704337841059,-500.0,0.00032876,2]
[310104370,1704337841070,-500.0,0.00032876,2]
[310104371,1704337841080,-611.453303,0.00032876,2]
[310104372,1704337841091,-500.0,0.00032876,2]
[310104373,1704337841100,-500.0,0.00032876,2]
[310104374,1704337841111,-500.0,0.00032876,2]
[310104375,1704337841121,-500.0,0.00032876,2]
[310104376,1704337841131,-500.0,0.00032876,2]
[310104377,1704337841140,-500.0,0.00032876,2]
[310104378,1704337841150,-500.0,0.00032876,2]
[310104379,1704337841160,-515.40584695,0.00032876,2]
[310104380,1704337841170,-500.0,0.00032876,2]
[310104381,1704337841181,-500.0,0.00032876,2]
[310104382,1704337841192,-500.0,0.00032876,2]
[310104383,1704337841203,-500.0,0.00032876,2]
[310104384,1704337841213,-500.0,0.00032876,2]
[310104385,1704337841224,-500.0,0.00032876,2]
[310104386,1704337841235,-500.0,0.00032876,2]
[310104387,1704337841247,-500.0,0.00032876,2]
[310104388,1704337841258,-500.0,0.00032876,2]
[310104389,1704337841268,-500.0,0.00032876,2]
[310104390,1704337841278,-916.64,0.00032876,2]
[310104391,1704337841289,-500.0,0.00032876,2]
[310104392,1704337841300,-500.0,0.00032876,2]
[310104393,1704337841310,-500.0,0.00032876,2]
[310104394,1704337841319,-500.0,0.00032876,2]
[310104395,1704337841332,-521.25635135,0.00032876,2]
[310104396,1704337841341,-500.0,0.00032876,2]
[310104397,1704337841350,-507.82884788,0.00032876,2]
[310104398,1704337841360,-500.0,0.00032876,2]
[310104399,1704337841369,-509.14939687,0.00032876,2]
[310104400,1704337841378,-568.10224634,0.00032876,2]
[310104401,1704337841388,-823.53,0.00032876,2]
[310104402,1704337841397,-500.0,0.00032876,2]
[310104403,1704337841407,-500.0,0.00032876,2]
[310104404,1704337841417,-500.0,0.00032876,2]
[310104405,1704337841427,-511.03872007,0.00032876,2]
[310104406,1704337841436,-245.09373498,0.00032876,2]
[310104407,1704337841446,-509.5931431,0.00032876,2]
[310104408,1704337841456,-500.0,0.00032876,2]
[310104409,1704337841466,-500.0,0.00032876,2]
[310104410,1704337841476,-500.0,0.00032876,2]
[310104411,1704337841486,-639.84814608,0.00032876,2]
[310104412,1704337841497,-524.93959152,0.00032876,2]
[310104413,1704337841506,-500.0,0.00032876,2]
[310104414,1704337841517,-512.37021294,0.00032876,2]
[310104415,1704337841527,-500.0,0.00032876,2]
[310104416,1704337841537,-506.60155521,0.00032876,2]
[310104417,1704337841546,-500.0,0.00032876,2]
[310104418,1704337841556,-500.0,0.00032876,2]
[310104419,1704337841566,-500.0,0.00032876,2]
[310104420,1704337841585,-647.21267565,0.00032876,2]
[310104421,1704337841595,-500.0,0.00032876,2]
[310104422,1704337841604,-512.55844808,0.00032876,2]
[310104423,1704337841613,-500.0,0.00032876,2]
[310104424,1704337841622,-504.8733338,0.00032876,2]
[310104425,1704337841632,-502.42323219,0.00032876,2]
[310104426,1704337841642,-500.0,0.00032876,2]
[310104427,1704337841652,-831.98,0.00032876,2]
[310104428,1704337841662,-500.0,0.00032876,2]
[310104429,1704337841672,-509.73280469,0.00032876,2]
[310104430,1704337841681,-500.0,0.00032876,2]
[310104431,1704337841690,-542.4819052,0.00032876,2]
[310104432,1704337841700,-514.99962759,0.00032876,2]
[310104433,1704337841709,-514.65384126,0.00032876,2]
[310104434,1704337841719,-500.0,0.00032876,2]
[310104435,1704337841729,-500.0,0.00032876,2]
[310104436,1704337841738,-598.55,0.00032876,2]
[310104437,1704337841747,-540.14979606,0.00032876,2]
[310104438,1704337841757,-500.0,0.00032876,2]
[310104439,1704337841767,-500.0,0.00032876,2]
[310104440,1704337841777,-538.33728005,0.00032876,2]
[310104441,1704337841787,-526.8429174,0.00032876,2]
[310104442,1704337841797,-509.63302139,0.00032876,2]
[310104443,1704337841807,-500.0,0.00032876,2]
[310104444,1704337841817,-499.59825643,0.00032876,2]
[310104445,1704337841827,-514.76589388,0.00032876,2]
[310104446,1704337841837,-500.0,0.00032876,2]
[310104447,1704337841847,-500.0,0.00032876,2]
[310104448,1704337841857,-504.72907574,0.00032876,2]
[310104449,1704337841866,-500.0,0.00032876,2]
[310104450,1704337841877,-516.31675256,0.00032876,2]
[310104451,1704337841886,-515.44680732,0.00032876,2]
[310104452,1704337841896,-500.0,0.00032876,2]
[310104453,1704337841907,-541.46874247,0.00032876,2]
[310104454,1704337841917,-531.23270026,0.00032876,2]
[310104455,1704337841929,-523.14208613,0.00032876,2]
[310104456,1704337841939,-500.0,0.00032876,2]
[310104457,1704337841951,-500.0,0.00032876,2]
[310104458,1704337841963,-500.0,0.00032876,2]
[310104459,1704337841974,-506.41591432,0.00032876,2]
[310104460,1704337841984,-506.23901328,0.00032876,2]
[310104461,1704337841994,-479.17,0.00032876,2]
[310104462,1704337842003,-500.0,0.00032876,2]
[310104463,1704337842013,-509.27094973,0.00032876,2]
[310104464,1704337842023,-500.0,0.00032876,2]
[310104465,1704337842032,-537.05091024,0.00032876,2]
[310104466,1704337842043,-501.27157084,0.00032876,2]
[310104467,1704337842053,-500.0,0.00032876,2]
[310104468,1704337842062,-500.0,0.00032876,2]
[310104469,1704337842072,-500.0,0.00032876,2]
[310104470,1704337842082,-562.76908772,0.00032876,2]
[310104471,1704337842093,-500.0,0.00032876,2]
[310104472,1704337842104,-500.0,0.00032876,2]
[310104473,1704337842114,-500.0,0.00032876,2]
[310104474,1704337842123,-540.30855226,0.00032876,2]
[310104475,1704337842133,-511.69429788,0.00032876,2]
[310104476,1704337842142,-500.0,0.00032876,2]
[310104477,1704337842151,-500.0,0.00032876,2]
[310104478,1704337842160,-1234.08,0.00032876,2]
[310104479,1704337842170,-519.90785621,0.00032876,2]
[310104480,1704337842179,-500.0,0.00032876,2]
[310104481,1704337842188,-454.38,0.00032876,2]
[310104482,1704337842198,-500.0,0.00032876,2]
[310104483,1704337842207,-507.16734662,0.00032876,2]
[310104484,1704337842217,-422.97455907,0.00032876,2]
[310104485,1704337842227,-500.0,0.00032876,2]
[310104486,1704337842236,-500.0,0.00032876,2]
[310104487,1704337842245,-500.0,0.00032876,2]
[310104488,1704337842255,-500.0,0.00032876,2]
[310104489,1704337842266,-500.0,0.00032876,2]
[310104490,1704337842276,-698.06,0.00032876,2]
[310104492,1704337842286,-500.0,0.00032876,2]
[310104494,1704337842296,-519.88480094,0.00032876,2]
[310104496,1704337842305,-500.0,0.00032876,2]
[310104498,1704337842315,-500.0,0.00032876,2]
[310104500,1704337842324,-500.0,0.00032876,2]
[310104502,1704337842334,-500.0,0.00032876,2]
[310104504,1704337842343,-500.0,0.00032876,2]
[310104505,1704337842352,-500.0,0.00032876,2]
[310104507,1704337842361,-500.0,0.00032876,2]
[310104509,1704337842371,-500.0,0.00032876,2]
[310104511,1704337842380,-500.0,0.00032876,2]
[310104513,1704337842390,-500.0,0.00032876,2]
[310104516,1704337842398,-500.0,0.00032876,2]
[310104518,1704337842408,-512.88371993,0.00032876,2]
[310104520,1704337842417,-498.06086559,0.00032876,2]
[310104522,1704337842428,-500.0,0.00032876,2]
[310104524,1704337842439,-500.0,0.00032876,2]
[310104526,1704337842449,-500.0,0.00032876,2]
[310104528,1704337842460,-500.0,0.00032876,2]
[310104530,1704337842470,-500.0,0.00032876,2]
[310104532,1704337842479,-500.0,0.00032876,2]
[310104534,1704337842489,-500.0,0.00032876,2]
[310104536,1704337842498,-500.0,0.00032876,2]
[310104538,1704337842509,-500.0,0.00032876,2]
[310104539,1704337842524,-1996.35,0.00032876,2]
[310104540,1704337842534,-520.00804318,0.00032876,2]
[310104541,1704337842544,-500.0,0.00032876,2]
[310104542,1704337842554,-500.0,0.00032876,2]
[310104543,1704337842564,-500.0,0.00032876,2]
[310104544,1704337842574,-500.0,0.00032876,2]
[310104545,1704337842583,-567.46,0.00032876,2]
[310104546,1704337842593,-591.55,0.00032876,2]
[310104547,1704337842604,-500.0,0.00032876,2]
[310104548,1704337842614,-500.0,0.00032876,2]
[310104549,1704337842623,-500.0,0.00032876,2]
[310104550,1704337842632,-500.0,0.00032876,2]
[310104551,1704337842641,-500.0,0.00032876,2]
[310104552,1704337842650,-517.87976218,0.00032876,2]
[310104553,1704337842659,-500.0,0.00032876,2]
[310104554,1704337842668,-512.87749206,0.00032876,2]
[310104555,1704337842676,-570.93,0.00032876,2]
[310104556,1704337842685,-500.0,0.00032876,2]
[310104557,1704337842694,-500.0,0.00032876,2]
[310104558,1704337842703,-619.95425041,0.00032876,2]
[310104559,1704337842712,-500.0,0.00032876,2]
[310104560,1704337842721,-500.0,0.00032876,2]
[310104561,1704337842730,-500.0,0.00032876,2]
[310104562,1704337842739,-548.75472556,0.00032876,2]
[310104563,1704337842748,-500.0,0.00032876,2]
[310104564,1704337842757,-500.0,0.00032876,2]
[310104565,1704337842768,-500.0,0.00032876,2]
[310104566,1704337842777,-500.0,0.00032876,2]
[310104567,1704337842786,-500.0,0.00032876,2]
[310104568,1704337842795,-500.0,0.00032876,2]
[310104569,1704337842804,-500.0,0.00032876,2]
[310104570,1704337842813,-500.0,0.00032876,3]
[310104571,1704337842822,-500.0,0.00032876,2]
[310104572,1704337842831,-521.41718714,0.00032876,2]
[310104573,1704337842840,-500.0,0.00032876,2]
[310104574,1704337842848,-500.0,0.00032876,2]
[310104575,1704337842857,-500.0,0.00032876,2]
[310104576,1704337842866,-659.64,0.00032876,2]
[310104577,1704337842876,-500.0,0.00032876,2]
[310104578,1704337842885,-546.6809561,0.00032876,2]
[310104579,1704337842894,-500.0,0.00032876,2]
[310104580,1704337842903,-500.0,0.00032876,2]
[310104581,1704337842912,-500.0,0.00032876,2]
[310104582,1704337842922,-500.0,0.00032876,2]
[310104583,1704337842931,-500.0,0.00032876,2]
[310104584,1704337842941,-508.22931913,0.00032876,2]
[310104585,1704337842951,-500.0,0.00032876,2]
[310104586,1704337842960,-561.95,0.00032876,2]
[310104587,1704337842970,-500.0,0.00032876,2]
[310104588,1704337842980,-500.0,0.00032876,2]
[310104590,1704337842990,-500.0,0.00032876,2]
[310104591,1704337842999,-500.0,0.00032876,2]
[310104593,1704337843009,-500.0,0.00032876,2]
[310104595,1704337843020,-310.55181532,0.00032876,2]
[310104596,1704337843030,-560.05775677,0.00032876,2]
[310104597,1704337843039,-547.91074188,0.00032876,2]
[310104598,1704337843049,-542.90727587,0.00032876,2]
[310104599,1704337843058,-552.38011478,0.00032876,2]
[310104600,1704337843068,-500.0,0.00032876,2]
[310104601,1704337843078,-500.0,0.00032876,2]
[310104602,1704337843089,-524.26287241,0.00032876,2]
[310104603,1704337843100,-500.0,0.00032876,2]
[310104604,1704337843109,-500.0,0.00032876,2]
[310104605,1704337843119,-500.0,0.00032876,2]
[310104606,1704337843128,-356.86424579,0.00032876,2]
[310104607,1704337843137,-529.52590665,0.00032876,2]
[310104608,1704337843147,-500.0,0.00032876,2]
[310104609,1704337843156,-500.0,0.00032876,2]
[310104610,1704337843165,-500.0,0.00032876,2]
[310104611,1704337843174,-1032.53,0.00032876,2]
[310104612,1704337843184,-522.77774147,0.00032876,2]
[310104613,1704337843193,-511.39464352,0.00032876,2]
[310104614,1704337843202,-11471.75,0.00032876,2]
[310104615,1704337843212,-500.0,0.00032876,2]
[310104616,1704337843222,-399.87567214,0.00032876,2]
[310104617,1704337843233,-510.98321885,0.00032876,2]
[310104618,1704337843243,-500.0,0.00032876,2]
[310104619,1704337843253,-500.0,0.00032876,2]
[310104620,1704337843264,-525.88648048,0.00032876,2]
[310104621,1704337843273,-3164.61,0.00032876,2]
[310104622,1704337843283,-500.0,0.00032876,2]
[310104623,1704337843293,-420.47443563,0.00032876,2]
[310104624,1704337843303,-526.06235721,0.00032876,2]
[310104625,1704337843313,-517.37598029,0.00032876,2]
[310104626,1704337843323,-614.35,0.00032876,2]
[310104627,1704337843333,-500.0,0.00032876,2]
[310104628,1704337843342,-500.0,0.00032876,2]
[310104629,1704337843352,-500.0,0.00032876,2]
[310104630,1704337843361,-500.0,0.00032876,2]
[310104631,1704337843371,-641.47169058,0.00032876,2]
[310104632,1704337843381,-500.0,0.00032876,2]
[310104633,1704337843391,-500.0,0.00032876,2]
[310104634,1704337843401,-500.0,0.00032876,2]
[310104635,1704337843411,-500.0,0.00032876,2]
[310104636,1704337843421,-500.0,0.00032876,2]
[310104637,1704337843430,-500.0,0.00032876,2]
[310104638,1704337843440,-500.0,0.00032876,2]
[310104639,1704337843449,-500.0,0.00032876,2]
[310104640,1704337843459,-500.0,0.00032876,2]
[310104641,1704337843469,-530.56236836,0.00032876,2]
[310104642,1704337843478,-950.59,0.00032876,2]
[310104643,1704337843487,-500.0,0.00032876,2]
[310104644,1704337843497,-515.79901529,0.00032876,2]
[310104645,1704337843507,-8160.24,0.00032876,2]
[310104646,1704337843518,-522.22452028,0.00032876,2]
[310104647,1704337843528,-500.0,0.00032876,2]
[310104648,1704337843537,-500.0,0.00032876,2]
[310104649,1704337843547,-562.86846595,0.00032876,2]
[310104650,1704337843557,-500.0,0.00032876,2]
[310104651,1704337843567,-507.35478225,0.00032876,2]
[310104652,1704337843576,-560.56,0.00032876,2]
[310104653,1704337843586,-500.0,0.00032876,2]
[310104654,1704337843595,-165.59175021,0.00032876,2]
[310104655,1704337843605,-500.0,0.00032876,2]
[310104656,1704337843615,-500.0,0.00032876,2]
[310104657,1704337843624,-500.0,0.00032876,2]
[310104658,1704337843634,-500.0,0.00032876,2]
[310104659,1704337843643,-500.0,0.00032876,2]
[310104660,1704337843652,-500.0,0.00032876,2]
[310104661,1704337843662,-500.0,0.00032876,2]
[310104662,1704337843672,-500.0,0.00032876,2]
[310104663,1704337843681,-527.8020413,0.00032876,2]
[310104664,1704337843690,-500.0,0.00032876,2]
[310104665,1704337843701,-500.0,0.00032876,2]
[310104666,1704337843709,-3707.53,0.00032876,2]
[310104667,1704337843719,-500.0,0.00032876,2]
[310104668,1704337843729,-1752.44,0.00032876,2]
[310104669,1704337843739,-500.0,0.00032876,2]
[310104670,1704337843749,-549.37,0.00032876,2]
[310104671,1704337843758,-500.0,0.00032876,2]
[310104672,1704337843769,-502.42370393,0.00032876,2]
[310104673,1704337843778,-154.58259225,0.00032876,2]
[310104674,1704337843788,-500.0,0.00032876,2]
[310104675,1704337843797,-1837.09,0.00032876,2]
[310104676,1704337843806,-500.0,0.00032876,2]
[310104677,1704337843815,-500.0,0.00032876,2]
[310104678,1704337843824,-1313.43,0.00032876,2]
[310104679,1704337843834,-798.85,0.00032876,2]
[310104680,1704337843843,-500.0,0.00032876,2]
[310104681,1704337843852,-500.0,0.00032876,2]
[310104682,1704337843861,-500.0,0.00032876,2]
[310104683,1704337843870,-500.0,0.00032876,2]
[310104684,1704337843879,-512.70633857,0.00032876,10]
[310104685,1704337843889,-500.0,0.00032876,2]
[310104686,1704337843898,-500.0,0.00032876,2]
[310104687,1704337843907,-574.45278573,0.00032876,2]
[310104688,1704337843916,-500.0,0.00032876,2]
[310104689,1704337843926,-1000.0,0.00032876,2]
[310104690,1704337843935,-1024.34435096,0.00032876,2]
[310104691,1704337843944,-500.0,0.00032876,2]
[310104692,1704337843953,-370.81870645,0.00032876,2]
[310104693,1704337843963,-500.0,0.00032876,2]
[310104694,1704337843972,-500.0,0.00032876,2]
[310104695,1704337843981,-500.0,0.00032876,2]
[310104696,1704337843991,-615.16,0.00032876,2]
[310104697,1704337844000,-561.3043728,0.00032876,2]
[310104698,1704337844010,-4889.27,0.00032876,2]
[310104699,1704337844020,-500.0,0.00032876,2]
[310104700,1704337844029,-500.0,0.00032876,2]
[310104701,1704337844038,-500.0,0.00032876,2]
[310104702,1704337844047,-500.0,0.00032876,2]
[310104703,1704337844057,-584.32897561,0.00032876,2]
[310104704,1704337844067,-500.0,0.00032876,2]
[310104705,1704337844076,-1475.67,0.00032876,2]
[310104706,1704337844086,-500.0,0.00032876,2]
[310104707,1704337844095,-584.16341296,0.00032876,2]
[310104708,1704337844104,-511.51046072,0.00032876,2]
[310104709,1704337844113,-602.25834951,0.00032876,2]
[310104710,1704337844123,-500.0,0.00032876,2]
[310104711,1704337844132,-5653.91,0.00032876,2]
[310104712,1704337844142,-840.98,0.00032876,2]
[310104713,1704337844151,-598.89414507,0.00032876,2]
[310104714,1704337844160,-500.0,0.00032876,2]
[310104715,1704337844169,-500.0,0.00032876,2]
[310104716,1704337844179,-542.88617254,0.00032876,2]
[310104717,1704337844189,-518.97324289,0.00032876,2]
[310104718,1704337844200,-500.0,0.00032876,2]
[310104719,1704337844209,-500.0,0.00032876,2]
[310104720,1704337844220,-500.0,0.00032876,2]
[310104721,1704337844230,-500.0,0.00032876,2]
[310104722,1704337844242,-2623.59,0.00032876,2]
[310104723,1704337844251,-500.0,0.00032876,2]
[310104724,1704337844261,-500.0,0.00032876,2]
[310104725,1704337844271,-500.0,0.00032876,2]
[310104726,1704337844280,-558.97668311,0.00032876,2]
[310104727,1704337844289,-500.0,0.00032876,2]
[310104728,1704337844299,-520.93703701,0.00032876,2]
[310104729,1704337844308,-500.0,0.00032876,2]
[310104730,1704337844318,-500.0,0.00032876,2]
[310104731,1704337844328,-446.56384525,0.00032876,2]
[310104732,1704337844337,-1040.12,0.00032876,2]
[310104733,1704337844346,-506.67691819,0.00032876,2]
[310104734,1704337844355,-1477.68,0.00032876,2]
[310104735,1704337844364,-500.0,0.00032876,2]
[310104736,1704337844374,-852.48,0.00032876,2]
[310104737,1704337844385,-790.65,0.00032876,2]
[310104738,1704337844395,-500.0,0.00032876,2]
[310104739,1704337844406,-500.0,0.00032876,2]
[310104740,1704337844418,-500.0,0.00032876,2]
[310104741,1704337844429,-500.0,0.00032876,2]
[310104742,1704337844441,-2961.51,0.00032876,2]
[310104743,1704337844451,-1019.17,0.00032876,2]
[310104744,1704337844461,-208.22375106,0.00032876,2]
[310104745,1704337844471,-500.0,0.00032876,2]
[310104746,1704337844481,-563.44604397,0.00032876,2]
[310104747,1704337844490,-500.0,0.00032876,2]
[310104748,1704337844499,-511.77,0.00032876,2]
[310104749,1704337844509,-1145.29,0.00032876,2]
[310104750,1704337844521,-629.0930889,0.00032876,2]
[310104751,1704337844531,-1349.0,0.00032876,2]
[310104752,1704337844541,-500.0,0.00032876,2]
[310104753,1704337844551,-4268.3,0.00032876,2]
[310104754,1704337844561,-500.0,0.00032876,2]
[310104755,1704337844572,-980.11,0.00032876,2]
[310104756,1704337844582,-462.95940601,0.00032876,2]
[310104757,1704337844596,-516.25495555,0.00032876,2]
[310104758,1704337844607,-500.0,0.00032876,2]
[310104759,1704337844788,-500.0,0.00032876,2]
[310104760,1704337844797,-505.85928138,0.00032876,2]
[310104761,1704337844807,-1242.92,0.00032876,2]
[310104762,1704337844816,-511.5231527,0.00032876,2]
[310104763,1704337844826,-500.0,0.00032876,2]
[310104764,1704337844835,-500.0,0.00032876,2]
[310104765,1704337844844,-500.0,0.00032876,2]
[310104766,1704337844854,-527.41701566,0.00032876,2]
[310104767,1704337844863,-500.0,0.00032876,2]
[310104768,1704337844873,-453.76418211,0.00032876,2]
[310104769,1704337844883,-517.77817155,0.00032876,2]
[310104770,1704337844892,-500.0,0.00032876,2]
[310104771,1704337844902,-513.06520466,0.00032876,2]
[310104772,1704337844912,-871.69,0.00032876,2]
[310104773,1704337844922,-1219.15,0.00032876,2]
[310104774,1704337844933,-500.0,0.00032876,2]
[310104775,1704337844942,-2161.86,0.00032876,2]
[310104776,1704337844952,-634.11174604,0.00032876,2]
[310104777,1704337844962,-230.3518034,0.00032876,2]
[310104778,1704337844971,-500.0,0.00032876,2]
[310104779,1704337844982,-1718.45,0.00032876,2]
[310104780,1704337844993,-500.0,0.00032876,2]
[310104781,1704337845002,-500.0,0.00032876,2]
[310104782,1704337845012,-500.0,0.00032876,2]
[310104783,1704337845023,-503.65272442,0.00032876,2]
[310104784,1704337845034,-1052.07,0.00032876,2]
[310104785,1704337845044,-1461.18,0.00032876,2]
[310104786,1704337845053,-4344.21,0.00032876,2]
[310104787,1704337845063,-989.87,0.00032876,2]
[310104788,1704337845072,-562.53711297,0.00032876,2]
[310104789,1704337845082,-507.02207179,0.00032876,2]
[310104790,1704337845091,-239.5885578,0.00032876,2]
[310104791,1704337845101,-500.0,0.00032876,2]